[Event "5e festival international d'échecs d'A"]
[Site "Allauch, France"]
[Date "2023.08.30"]
[Round "5.5"]
[White "Toth, Kincso"]
[Black "Djoudi, Labir"]
[Result "1-0"]
[WhiteElo "1709"]
[BlackElo "1821"]
[PlyCount "99"]
[EventDate "2023.??.??"]
[TimeControl "1"]

1. e4 {[%emt 0:00:00]} c5 {[%emt 0:00:00]} 2. d4 {[%emt 0:00:00]} cxd4 {
[%emt 0:00:00]} 3. c3 {[%emt 0:00:00]} Nf6 {[%emt 0:00:00]} 4. e5 {[%emt 0:00:
00]} Nd5 {[%emt 0:00:00]} 5. Nf3 {[%emt 0:00:00]} Nc6 {[%emt 0:00:00]} 6. Bc4 {
[%emt 0:00:00]} Nb6 {[%emt 0:00:00]} 7. Bb3 {[%emt 0:00:00]} d6 {[%emt 0:00:00]
} 8. exd6 {[%emt 0:00:00]} e6 {[%emt 0:00:00]} 9. Nxd4 {[%emt 0:00:00]} Nxd4 {
[%emt 0:00:00]} 10. Qxd4 {[%emt 0:00:00]} Qxd6 {[%emt 0:00:00]} 11. Qg4 {
[%emt 0:00:00]} Qe5+ {[%emt 0:00:00]} 12. Be3 {[%emt 0:00:00]} Bc5 {[%emt 0:00:
00]} 13. Qf3 {[%emt 0:00:00]} Bxe3 {[%emt 0:00:00]} 14. fxe3 {[%emt 0:00:00]}
Bd7 {[%emt 0:00:00]} 15. O-O {[%emt 0:00:00]} O-O {[%emt 0:00:00]} 16. Na3 {
[%emt 0:00:00]} Bc6 {[%emt 0:00:00]} 17. Qh3 {[%emt 0:00:00]} Be4 {[%emt 0:00:
00]} 18. Rae1 {[%emt 0:00:00]} Rad8 {[%emt 0:00:00]} 19. Rf2 {[%emt 0:00:00]}
Rd7 {[%emt 0:00:00]} 20. Ref1 {[%emt 0:00:00]} Rfd8 {[%emt 0:00:00]} 21. Nc2 {
[%emt 0:00:00]} a5 {[%emt 0:00:00]} 22. Nd4 {[%emt 0:00:00]} a4 {[%emt 0:00:00]
} 23. Bxe6 {[%emt 0:00:00]} fxe6 {[%emt 0:00:00]} 24. Nxe6 {[%emt 0:00:00]} h6
{[%emt 0:00:00]} 25. Nxd8 {[%emt 0:00:00]} Rxd8 {[%emt 0:00:00]} 26. Qh4 {
[%emt 0:00:00]} Rd6 {[%emt 0:00:00]} 27. Rf4 {[%emt 0:00:00]} Bd5 {[%emt 0:00:
00]} 28. Qg3 {[%emt 0:00:00]} Re6 {[%emt 0:00:00]} 29. Re1 {[%emt 0:00:00]}
Bxa2 {[%emt 0:00:00]} 30. Qf2 {[%emt 0:00:00]} Bb3 {[%emt 0:00:00]} 31. Rb4 {
[%emt 0:00:00]} Re7 {[%emt 0:00:00]} 32. Rxb6 {[%emt 0:00:00]} Qc5 {[%emt 0:00:
00]} 33. Rb4 {[%emt 0:00:00]} b5 {[%emt 0:00:00]} 34. Rf4 {[%emt 0:00:00]} Re5
{[%emt 0:00:00]} 35. h3 {[%emt 0:00:00]} Kh7 {[%emt 0:00:00]} 36. Qd2 {[%emt 0:
00:00]} Be6 {[%emt 0:00:00]} 37. Kh2 {[%emt 0:00:00]} Qc7 {[%emt 0:00:00]} 38.
g3 {[%emt 0:00:00]} Rh5 {[%emt 0:00:00]} 39. Qd3+ {[%emt 0:00:00]} g6 {[%emt 0:
00:00]} 40. h4 {[%emt 0:00:00]} Rd5 {[%emt 0:00:00]} 41. Rd4 {[%emt 0:00:00]}
Rf5 {[%emt 0:00:00]} 42. Rf1 {[%emt 0:00:00]} Re5 {[%emt 0:00:00]} 43. Rf6 {
[%emt 0:00:00]} Qg7 {[%emt 0:00:00]} 44. Rf2 {[%emt 0:00:00]} h5 {[%emt 0:00:
00]} 45. Rd8 {[%emt 0:00:00]} Bf5 {[%emt 0:00:00]} 46. Qd4 {[%emt 0:00:00]} Kh6
{[%emt 0:00:00]} 47. Rf4 {[%emt 0:00:00]} Qe7 {[%emt 0:00:00]} 48. Qd2 {
[%emt 0:00:00]} Kh7 {[%emt 0:00:00]} 49. Rxf5 {[%emt 0:00:00]} Rxf5 {[%emt 0:
00:00]} 50. Qd4 {[%emt 0:00:00]} 1-0

[Event "5e festival international d'échecs d'A"]
[Site "Allauch, France"]
[Date "2023.08.30"]
[Round "5.6"]
[White "Hoang Villemagne, Mathieu"]
[Black "Negre Albert, Oscar"]
[Result "1-0"]
[WhiteElo "1350"]
[BlackElo "1296"]
[PlyCount "67"]
[EventDate "2023.??.??"]
[TimeControl "1"]

1. e4 {[%emt 0:00:00]} e5 {[%emt 0:00:00]} 2. Nf3 {[%emt 0:00:00]} Nc6 {
[%emt 0:00:00]} 3. Bc4 {[%emt 0:00:00]} Bc5 {[%emt 0:00:00]} 4. c3 {[%emt 0:00:
00]} Nf6 {[%emt 0:00:00]} 5. d3 {[%emt 0:00:00]} h6 {[%emt 0:00:00]} 6. O-O {
[%emt 0:00:00]} d6 {[%emt 0:00:00]} 7. a4 {[%emt 0:00:00]} a5 {[%emt 0:00:00]}
8. d4 {[%emt 0:00:00]} Bb6 {[%emt 0:00:00]} 9. Qb3 {[%emt 0:00:00]} O-O {
[%emt 0:00:00]} 10. Nh4 {[%emt 0:00:00]} Ne7 {[%emt 0:00:00]} 11. dxe5 {
[%emt 0:00:00]} dxe5 {[%emt 0:00:00]} 12. Nd2 {[%emt 0:00:00]} Bg4 {[%emt 0:00:
00]} 13. Qc2 {[%emt 0:00:00]} Qd6 {[%emt 0:00:00]} 14. b4 {[%emt 0:00:00]} axb4
{[%emt 0:00:00]} 15. cxb4 {[%emt 0:00:00]} Rad8 {[%emt 0:00:00]} 16. Ra2 {
[%emt 0:00:00]} Kh8 {[%emt 0:00:00]} 17. Ba3 {[%emt 0:00:00]} Qd7 {[%emt 0:00:
00]} 18. b5 {[%emt 0:00:00]} Be6 {[%emt 0:00:00]} 19. Ndf3 {[%emt 0:00:00]} Bd4
{[%emt 0:00:00]} 20. Bxe6 {[%emt 0:00:00]} Qxe6 {[%emt 0:00:00]} 21. Nf5 {
[%emt 0:00:00]} Rfe8 {[%emt 0:00:00]} 22. Nxe7 {[%emt 0:00:00]} Rxe7 {[%emt 0:
00:00]} 23. Bxe7 {[%emt 0:00:00]} Qxe7 {[%emt 0:00:00]} 24. a5 {[%emt 0:00:00]}
Ng4 {[%emt 0:00:00]} 25. h3 {[%emt 0:00:00]} Nf6 {[%emt 0:00:00]} 26. Ra4 {
[%emt 0:00:00]} Qe8 {[%emt 0:00:00]} 27. Qxc7 {[%emt 0:00:00]} Nxe4 {[%emt 0:
00:00]} 28. Nxd4 {[%emt 0:00:00]} exd4 {[%emt 0:00:00]} 29. Re1 {[%emt 0:00:00]
} Rd7 {[%emt 0:00:00]} 30. Rxe4 {[%emt 0:00:00]} Qxe4 {[%emt 0:00:00]} 31. Qxd7
{[%emt 0:00:00]} Qe1+ {[%emt 0:00:00]} 32. Kh2 {[%emt 0:00:00]} Qxf2 {[%emt 0:
00:00]} 33. Qd8+ {[%emt 0:00:00]} Kh7 {[%emt 0:00:00]} 34. Qxd4 {[%emt 0:00:00]
} 1-0

[Event "5e festival international d'échecs d'A"]
[Site "Allauch, France"]
[Date "2023.08.30"]
[Round "5.7"]
[White "Omelchenko, Danila"]
[Black "Bonchristiani, Pierre"]
[Result "1-0"]
[WhiteElo "1199"]
[BlackElo "1416"]
[PlyCount "81"]
[EventDate "2023.??.??"]
[TimeControl "1"]

1. b3 {[%emt 0:00:00]} d5 {[%emt 0:00:00]} 2. Nf3 {[%emt 0:00:00]} Bf5 {
[%emt 0:00:00]} 3. Bb2 {[%emt 0:00:00]} Nc6 {[%emt 0:00:00]} 4. e3 {[%emt 0:00:
00]} f6 {[%emt 0:00:00]} 5. Bb5 {[%emt 0:00:00]} e5 {[%emt 0:00:00]} 6. Nh4 {
[%emt 0:00:00]} Bd7 {[%emt 0:00:00]} 7. Qh5+ {[%emt 0:00:00]} Ke7 {[%emt 0:00:
00]} 8. Ng6+ {[%emt 0:00:00]} hxg6 {[%emt 0:00:00]} 9. Qxh8 {[%emt 0:00:00]}
Nh6 {[%emt 0:00:00]} 10. Ba3+ {[%emt 0:00:00]} Kf7 {[%emt 0:00:00]} 11. Qxf8+ {
[%emt 0:00:00]} Qxf8 {[%emt 0:00:00]} 12. Bxf8 {[%emt 0:00:00]} Rxf8 {[%emt 0:
00:00]} 13. c4 {[%emt 0:00:00]} a6 {[%emt 0:00:00]} 14. Bxc6 {[%emt 0:00:00]}
Bxc6 {[%emt 0:00:00]} 15. cxd5 {[%emt 0:00:00]} Bxd5 {[%emt 0:00:00]} 16. f3 {
[%emt 0:00:00]} Bc6 {[%emt 0:00:00]} 17. Nc3 {[%emt 0:00:00]} Nf5 {[%emt 0:00:
00]} 18. h4 {[%emt 0:00:00]} Rh8 {[%emt 0:00:00]} 19. e4 {[%emt 0:00:00]} Ng3 {
[%emt 0:00:00]} 20. Rh3 {[%emt 0:00:00]} Nh5 {[%emt 0:00:00]} 21. Ne2 {[%emt 0:
00:00]} f5 {[%emt 0:00:00]} 22. exf5 {[%emt 0:00:00]} Bb5 {[%emt 0:00:00]} 23.
fxg6+ {[%emt 0:00:00]} Kxg6 {[%emt 0:00:00]} 24. g4 {[%emt 0:00:00]} Nf6 {
[%emt 0:00:00]} 25. Ng3 {[%emt 0:00:00]} Rd8 {[%emt 0:00:00]} 26. Ne4 {[%emt 0:
00:00]} Nd5 {[%emt 0:00:00]} 27. h5+ {[%emt 0:00:00]} Kh7 {[%emt 0:00:00]} 28.
Ng5+ {[%emt 0:00:00]} Kg8 {[%emt 0:00:00]} 29. h6 {[%emt 0:00:00]} gxh6 {
[%emt 0:00:00]} 30. Rxh6 {[%emt 0:00:00]} Nf4 {[%emt 0:00:00]} 31. O-O-O {
[%emt 0:00:00]} Ne2+ {[%emt 0:00:00]} 32. Kc2 {[%emt 0:00:00]} Bd3+ {[%emt 0:
00:00]} 33. Kb2 {[%emt 0:00:00]} Rd5 {[%emt 0:00:00]} 34. Rdh1 {[%emt 0:00:00]}
Nd4 {[%emt 0:00:00]} 35. Rh8+ {[%emt 0:00:00]} Kg7 {[%emt 0:00:00]} 36. Rc8 {
[%emt 0:00:00]} Rc5 {[%emt 0:00:00]} 37. Rc1 {[%emt 0:00:00]} Rb5 {[%emt 0:00:
00]} 38. R8xc7+ {[%emt 0:00:00]} Kf6 {[%emt 0:00:00]} 39. Ne4+ {[%emt 0:00:00]}
Ke6 {[%emt 0:01:35]} 40. Nc5+ {[%emt 0:00:00]} Kd6 {[%emt 0:00:30]} 41. Nxd3 {
[%emt 0:00:00]} 1-0

[Event "5e festival international d'échecs d'A"]
[Site "Allauch, France"]
[Date "2023.08.30"]
[Round "5.8"]
[White "Proud'Hon, Gabriel"]
[Black "Touzet, Cassien"]
[Result "0-1"]
[WhiteElo "1340"]
[BlackElo "1389"]
[PlyCount "160"]
[EventDate "2023.??.??"]
[TimeControl "1"]

1. e4 {[%emt 0:00:00]} c6 {[%emt 0:00:00]} 2. d4 {[%emt 0:00:00]} d5 {[%emt 0:
00:00]} 3. e5 {[%emt 0:00:00]} Bf5 {[%emt 0:00:00]} 4. h4 {[%emt 0:00:00]} h6 {
[%emt 0:00:00]} 5. g4 {[%emt 0:00:00]} Bh7 {[%emt 0:00:00]} 6. e6 {[%emt 0:00:
00]} fxe6 {[%emt 0:00:00]} 7. Bd3 {[%emt 0:00:00]} Nf6 {[%emt 0:00:00]} 8. Bxh7
{[%emt 0:00:00]} Nxh7 {[%emt 0:00:00]} 9. g5 {[%emt 0:00:00]} g6 {[%emt 0:00:
00]} 10. Qd3 {[%emt 0:00:00]} Rg8 {[%emt 0:00:00]} 11. f4 {[%emt 0:00:00]} c5 {
[%emt 0:00:00]} 12. c3 {[%emt 0:00:00]} Nc6 {[%emt 0:00:00]} 13. h5 {[%emt 0:
00:00]} hxg5 {[%emt 0:00:00]} 14. fxg5 {[%emt 0:00:00]} Bg7 {[%emt 0:00:00]}
15. Qxg6+ {[%emt 0:00:00]} Kd7 {[%emt 0:00:00]} 16. Qxh7 {[%emt 0:00:00]} cxd4
{[%emt 0:00:00]} 17. h6 {[%emt 0:00:00]} Be5 {[%emt 0:00:00]} 18. Ne2 {[%emt 0:
00:00]} dxc3 {[%emt 0:00:00]} 19. Nbxc3 {[%emt 0:00:00]} d4 {[%emt 0:00:00]}
20. Ne4 {[%emt 0:00:00]} Qb6 {[%emt 0:00:00]} 21. a3 {[%emt 0:09:24]} d3 {
[%emt 0:00:00]} 22. N2c3 {[%emt 0:00:00]} Nd4 {[%emt 0:00:00]} 23. Nc5+ {
[%emt 0:00:00]} Qxc5 {[%emt 0:00:00]} 24. Qxd3 {[%emt 0:00:00]} Rad8 {[%emt 0:
00:00]} 25. Qe4 {[%emt 0:00:00]} Kc8 {[%emt 0:00:00]} 26. g6 {[%emt 0:00:00]}
Bg3+ {[%emt 0:00:00]} 27. Kd2 {[%emt 0:00:00]} Qg5+ {[%emt 0:00:00]} 28. Kd1 {
[%emt 0:00:00]} Nb3+ {[%emt 0:00:00]} 29. Kc2 {[%emt 0:00:00]} Nxa1+ {[%emt 0:
00:00]} 30. Kb1 {[%emt 0:00:00]} Qxg6 {[%emt 0:00:00]} 31. h7 {[%emt 0:00:00]}
Qxe4+ {[%emt 0:00:00]} 32. Nxe4 {[%emt 0:00:00]} Rh8 {[%emt 0:00:00]} 33. Nxg3
{[%emt 0:00:00]} Nb3 {[%emt 0:00:00]} 34. Bf4 {[%emt 0:00:00]} Rd5 {[%emt 0:00:
00]} 35. Ne4 {[%emt 0:00:00]} Rf5 {[%emt 0:00:00]} 36. Be3 {[%emt 0:00:00]} Re5
{[%emt 0:06:16]} 37. Ng5 {[%emt 0:00:00]} Rxe3 {[%emt 0:00:00]} 38. Nf7 {
[%emt 0:00:00]} Rxh7 {[%emt 0:00:00]} 39. Rxh7 {[%emt 0:00:00]} Nd4 {[%emt 0:
00:00]} 40. Rh8+ {[%emt 0:00:00]} Kc7 {[%emt 0:00:00]} 41. Re8 {[%emt 0:00:00]}
Nc6 {[%emt 0:00:00]} 42. Ng5 {[%emt 0:00:00]} e5 {[%emt 0:00:00]} 43. Rh8 {
[%emt 0:00:00]} Kd6 {[%emt 0:00:00]} 44. Rh2 {[%emt 0:00:00]} Nd4 {[%emt 0:00:
00]} 45. Rh6+ {[%emt 0:00:00]} Kd5 {[%emt 0:00:00]} 46. Rh7 {[%emt 0:00:00]}
Nc6 {[%emt 0:00:00]} 47. Rh4 {[%emt 0:00:00]} e4 {[%emt 0:00:00]} 48. Rh2 {
[%emt 0:00:00]} Rg3 {[%emt 0:00:00]} 49. Nh3 {[%emt 0:00:00]} e3 {[%emt 0:00:
00]} 50. Nf4+ {[%emt 0:00:00]} Ke4 {[%emt 0:00:00]} 51. Ne2 {[%emt 0:00:00]}
Rf3 {[%emt 0:00:00]} 52. Rh4+ {[%emt 0:00:00]} Kd3 {[%emt 0:00:00]} 53. Nc1+ {
[%emt 0:00:00]} Kd2 {[%emt 0:00:00]} 54. Nb3+ {[%emt 0:00:00]} Ke1 {[%emt 0:00:
00]} 55. Nc5 {[%emt 0:00:00]} e2 {[%emt 0:00:00]} 56. Ne4 {[%emt 0:00:00]} Kd1
{[%emt 0:00:00]} 57. Rh1+ {[%emt 0:00:00]} Rf1 {[%emt 0:00:00]} 58. Rh2 {
[%emt 0:00:00]} e1=Q {[%emt 0:00:00]} 59. Nc3+ {[%emt 0:00:00]} Qxc3 {[%emt 0:
00:00]} 60. bxc3 {[%emt 0:00:00]} Re1 {[%emt 0:00:00]} 61. Rh3 {[%emt 0:00:00]}
Kd2+ {[%emt 0:00:00]} 62. Kb2 {[%emt 0:00:00]} e5 {[%emt 0:00:00]} 63. Rh7 {
[%emt 0:00:00]} Na5 {[%emt 0:00:00]} 64. Rh4 {[%emt 0:00:00]} e4 {[%emt 0:00:
00]} 65. a4 {[%emt 0:00:00]} e3 {[%emt 0:00:00]} 66. Rd4+ {[%emt 0:00:00]} Ke2
{[%emt 0:00:00]} 67. Rf4 {[%emt 0:00:00]} Rf1 {[%emt 0:00:00]} 68. Re4 {
[%emt 0:00:00]} Rf3 {[%emt 0:00:00]} 69. Kc2 {[%emt 0:00:00]} Kf2 {[%emt 0:00:
00]} 70. Kd1 {[%emt 0:00:00]} Nc4 {[%emt 0:00:00]} 71. a5 {[%emt 0:00:00]} Kf1
{[%emt 0:00:00]} 72. a6 {[%emt 0:00:00]} bxa6 {[%emt 0:00:00]} 73. Re8 {
[%emt 0:00:00]} Rf2 {[%emt 0:00:00]} 74. Rxe3 {[%emt 0:00:00]} Nxe3+ {[%emt 0:
00:00]} 75. Kc1 {[%emt 0:00:00]} Nc4 {[%emt 0:00:00]} 76. Kd1 {[%emt 0:00:00]}
Kg2 {[%emt 0:00:00]} 77. Ke1 {[%emt 0:00:00]} Kf3 {[%emt 0:00:00]} 78. Kd1 {
[%emt 0:00:00]} Ke3 {[%emt 0:00:00]} 79. Kc1 {[%emt 0:00:00]} Kd3 {[%emt 0:00:
00]} 80. Kb1 {[%emt 0:00:00]} Kxc3 {[%emt 0:00:00]} 0-1

[Event "5e festival international d'échecs d'A"]
[Site "Allauch, France"]
[Date "2023.08.31"]
[Round "6.2"]
[White "Derige Kane, Yan"]
[Black "Figier, Anthony"]
[Result "1/2-1/2"]
[WhiteElo "2162"]
[BlackElo "1991"]
[PlyCount "108"]
[EventDate "2023.??.??"]
[TimeControl "1"]

1. e4 {[%emt 0:00:00]} Nf6 {[%emt 0:00:00]} 2. e5 {[%emt 0:00:00]} Nd5 {
[%emt 0:00:00]} 3. c4 {[%emt 0:00:00]} Nb6 {[%emt 0:00:00]} 4. d4 {[%emt 0:00:
00]} d6 {[%emt 0:00:00]} 5. f4 {[%emt 0:00:00]} g6 {[%emt 0:00:00]} 6. Nc3 {
[%emt 0:00:00]} dxe5 {[%emt 0:00:00]} 7. fxe5 {[%emt 0:00:00]} Bg7 {[%emt 0:00:
00]} 8. Be3 {[%emt 0:00:00]} O-O {[%emt 0:00:00]} 9. Qd2 {[%emt 0:00:00]} c5 {
[%emt 0:00:00]} 10. d5 {[%emt 0:00:00]} N6d7 {[%emt 0:00:00]} 11. Nf3 {[%emt 0:
00:00]} Nxe5 {[%emt 0:00:00]} 12. Nxe5 {[%emt 0:00:00]} Bxe5 {[%emt 0:00:00]}
13. Bxc5 {[%emt 0:00:00]} Bf5 {[%emt 0:00:00]} 14. Bd3 {[%emt 0:00:00]} Qa5 {
[%emt 0:00:00]} 15. Be3 {[%emt 0:00:00]} Bxd3 {[%emt 0:00:00]} 16. Qxd3 {
[%emt 0:00:00]} Nd7 {[%emt 0:00:00]} 17. O-O {[%emt 0:00:00]} Rac8 {[%emt 0:00:
00]} 18. Rac1 {[%emt 0:00:00]} a6 {[%emt 0:00:00]} 19. Bh6 {[%emt 0:00:00]}
Qc5+ {[%emt 0:00:00]} 20. Kh1 {[%emt 0:00:00]} Qxc4 {[%emt 0:00:00]} 21. Qxc4 {
[%emt 0:00:00]} Rxc4 {[%emt 0:00:00]} 22. Bxf8 {[%emt 0:00:00]} Kxf8 {[%emt 0:
00:00]} 23. Rfe1 {[%emt 0:00:00]} Rc5 {[%emt 0:00:00]} 24. g3 {[%emt 0:00:00]}
f6 {[%emt 0:00:00]} 25. Red1 {[%emt 0:00:00]} Nb6 {[%emt 0:00:00]} 26. Ne4 {
[%emt 0:00:00]} Rxd5 {[%emt 0:00:00]} 27. Rxd5 {[%emt 0:00:00]} Nxd5 {[%emt 0:
00:00]} 28. Nc5 {[%emt 0:00:00]} Bxb2 {[%emt 0:00:00]} 29. Rb1 {[%emt 0:00:00]}
Ba3 {[%emt 0:00:00]} 30. Nxb7 {[%emt 0:00:00]} e5 {[%emt 0:00:00]} 31. Rb3 {
[%emt 0:00:00]} Be7 {[%emt 0:00:00]} 32. Na5 {[%emt 0:00:00]} Kf7 {[%emt 0:00:
00]} 33. Nc6 {[%emt 0:00:00]} Bc5 {[%emt 0:00:00]} 34. Nb8 {[%emt 0:00:00]} e4
{[%emt 0:00:00]} 35. Nxa6 {[%emt 0:00:00]} Bd4 {[%emt 0:00:00]} 36. Nb4 {
[%emt 0:00:00]} Ke6 {[%emt 0:00:00]} 37. Nxd5 {[%emt 0:00:00]} Kxd5 {[%emt 0:
00:00]} 38. Kg2 {[%emt 0:00:00]} f5 {[%emt 0:00:00]} 39. h4 {[%emt 0:00:00]} h6
{[%emt 0:00:00]} 40. Kf1 {[%emt 0:00:00]} g5 {[%emt 0:00:00]} 41. Rb5+ {
[%emt 0:00:00]} Bc5 {[%emt 0:00:00]} 42. hxg5 {[%emt 0:00:00]} hxg5 {[%emt 0:
00:00]} 43. Rb8 {[%emt 0:00:00]} f4 {[%emt 0:00:00]} 44. Rg8 {[%emt 0:00:00]}
Be7 {[%emt 0:00:00]} 45. gxf4 {[%emt 0:00:00]} gxf4 {[%emt 0:00:00]} 46. a4 {
[%emt 0:00:00]} f3 {[%emt 0:00:00]} 47. a5 {[%emt 0:00:00]} e3 {[%emt 0:00:00]}
48. Re8 {[%emt 0:00:00]} e2+ {[%emt 0:00:00]} 49. Kf2 {[%emt 0:00:00]} Bh4+ {
[%emt 0:00:00]} 50. Kxf3 {[%emt 0:00:00]} e1=Q {[%emt 0:00:00]} 51. Rxe1 {
[%emt 0:00:00]} Bxe1 {[%emt 0:00:00]} 52. Ke2 {[%emt 0:00:00]} Kc5 {[%emt 0:00:
00]} 53. Kxe1 {[%emt 0:00:00]} Kb5 {[%emt 0:00:00]} 54. a6 {[%emt 0:00:00]}
Kxa6 {[%emt 0:00:00]} 1/2-1/2

[Event "5e festival international d'échecs d'A"]
[Site "Allauch, France"]
[Date "2023.08.31"]
[Round "6.4"]
[White "Pinto, Axel"]
[Black "Moncamp, Gilles"]
[Result "0-1"]
[WhiteElo "1837"]
[BlackElo "2103"]
[PlyCount "87"]
[EventDate "2023.??.??"]
[TimeControl "1"]

1. d4 {[%emt 0:00:00]} c6 {[%emt 0:00:00]} 2. c4 {[%emt 0:00:00]} d5 {[%emt 0:
00:00]} 3. Nf3 {[%emt 0:00:00]} Nf6 {[%emt 0:00:00]} 4. Qc2 {[%emt 0:00:00]} g6
{[%emt 0:00:00]} 5. Bf4 {[%emt 0:00:00]} Bf5 {[%emt 0:00:00]} 6. Qb3 {[%emt 0:
00:00]} Qb6 {[%emt 0:00:00]} 7. e3 {[%emt 0:00:00]} Qxb3 {[%emt 0:00:00]} 8.
axb3 {[%emt 0:00:00]} Bxb1 {[%emt 0:00:00]} 9. Rxb1 {[%emt 0:00:00]} Nbd7 {
[%emt 0:00:00]} 10. h3 {[%emt 0:00:00]} e6 {[%emt 0:00:00]} 11. Bd3 {[%emt 0:
00:00]} Bb4+ {[%emt 0:00:00]} 12. Ke2 {[%emt 0:00:00]} O-O {[%emt 0:00:00]} 13.
Rhc1 {[%emt 0:00:00]} Rfe8 {[%emt 0:00:00]} 14. Ra1 {[%emt 0:00:00]} Bf8 {
[%emt 0:00:00]} 15. Kf1 {[%emt 0:00:00]} Ne4 {[%emt 0:00:00]} 16. Bxe4 {
[%emt 0:00:00]} dxe4 {[%emt 0:00:00]} 17. Ne5 {[%emt 0:00:00]} Nxe5 {[%emt 0:
00:00]} 18. Bxe5 {[%emt 0:00:00]} a6 {[%emt 0:00:00]} 19. Rd1 {[%emt 0:00:00]}
Rad8 {[%emt 0:00:00]} 20. f3 {[%emt 0:00:00]} exf3 {[%emt 0:00:00]} 21. gxf3 {
[%emt 0:00:00]} Rd7 {[%emt 0:00:00]} 22. Ke2 {[%emt 0:00:00]} Bg7 {[%emt 0:00:
00]} 23. Bxg7 {[%emt 0:00:00]} Kxg7 {[%emt 0:00:00]} 24. e4 {[%emt 0:00:00]} f5
{[%emt 0:00:00]} 25. e5 {[%emt 0:00:00]} Red8 {[%emt 0:00:00]} 26. Ke3 {
[%emt 0:00:00]} c5 {[%emt 0:00:00]} 27. d5 {[%emt 0:00:00]} exd5 {[%emt 0:00:
00]} 28. Ra5 {[%emt 0:00:00]} d4+ {[%emt 0:00:00]} 29. Kd3 {[%emt 0:00:00]} Rc7
{[%emt 0:00:00]} 30. b4 {[%emt 0:00:00]} cxb4 {[%emt 0:00:00]} 31. Rd5 {
[%emt 0:00:00]} Rdc8 {[%emt 0:00:00]} 32. b3 {[%emt 0:00:00]} b5 {[%emt 0:00:
00]} 33. cxb5 {[%emt 0:00:00]} Rc3+ {[%emt 0:00:00]} 34. Kxd4 {[%emt 0:00:00]}
axb5 {[%emt 0:00:00]} 35. Rd7+ {[%emt 0:00:00]} Kh6 {[%emt 0:00:00]} 36. e6 {
[%emt 0:00:00]} Re8 {[%emt 0:00:00]} 37. e7 {[%emt 0:00:00]} Kg7 {[%emt 0:00:
00]} 38. Rd3 {[%emt 0:00:00]} Rxd3+ {[%emt 0:00:00]} 39. Kxd3 {[%emt 0:00:00]}
Kf6 {[%emt 0:00:00]} 40. Rd4 {[%emt 0:00:00]} Rxe7 {[%emt 0:00:00]} 41. Rxb4 {
[%emt 0:00:00]} Kg5 {[%emt 0:00:00]} 42. Rxb5 {[%emt 0:00:00]} Kf4 {[%emt 0:00:
00]} 43. Rb4+ {[%emt 0:00:00]} Kxf3 {[%emt 0:00:00]} 44. Kd4 {[%emt 0:00:59]}
0-1

[Event "5e festival international d'échecs d'A"]
[Site "Allauch, France"]
[Date "2023.08.31"]
[Round "6.5"]
[White "Chaumet, Etienne"]
[Black "Toth, Kincso"]
[Result "1-0"]
[WhiteElo "2075"]
[BlackElo "1709"]
[PlyCount "77"]
[EventDate "2023.??.??"]
[TimeControl "1"]

1. e4 {[%emt 0:00:00]} c5 {[%emt 0:00:00]} 2. Nf3 {[%emt 0:00:00]} d6 {[%emt 0:
00:00]} 3. d4 {[%emt 0:00:00]} cxd4 {[%emt 0:00:00]} 4. Nxd4 {[%emt 0:00:00]}
Nf6 {[%emt 0:00:00]} 5. Nc3 {[%emt 0:00:00]} g6 {[%emt 0:00:00]} 6. Be3 {
[%emt 0:00:00]} Nc6 {[%emt 0:00:00]} 7. h3 {[%emt 0:00:00]} h5 {[%emt 0:00:00]}
8. Qd2 {[%emt 0:00:00]} Nxd4 {[%emt 0:00:00]} 9. Bxd4 {[%emt 0:00:00]} Bh6 {
[%emt 0:00:00]} 10. f4 {[%emt 0:00:00]} O-O {[%emt 0:00:00]} 11. O-O-O {
[%emt 0:00:00]} Qa5 {[%emt 0:00:00]} 12. g4 {[%emt 0:00:00]} Bg7 {[%emt 0:00:
00]} 13. gxh5 {[%emt 0:00:00]} Nxh5 {[%emt 0:00:00]} 14. Bxg7 {[%emt 0:00:00]}
Nxg7 {[%emt 0:00:00]} 15. f5 {[%emt 0:00:00]} Bd7 {[%emt 0:00:00]} 16. Qh6 {
[%emt 0:00:00]} Bxf5 {[%emt 0:00:00]} 17. exf5 {[%emt 0:00:00]} Nxf5 {[%emt 0:
00:00]} 18. Qg5 {[%emt 0:00:00]} Rac8 {[%emt 0:00:00]} 19. Rd5 {[%emt 0:00:00]}
Rc5 {[%emt 0:00:00]} 20. Rxc5 {[%emt 0:00:00]} Qxc5 {[%emt 0:00:00]} 21. Bd3 {
[%emt 0:00:00]} e6 {[%emt 0:00:00]} 22. Bxf5 {[%emt 0:00:00]} exf5 {[%emt 0:00:
00]} 23. Rd1 {[%emt 0:00:00]} Re8 {[%emt 0:00:00]} 24. h4 {[%emt 0:00:00]} Re5
{[%emt 0:00:00]} 25. h5 {[%emt 0:00:00]} f4 {[%emt 0:00:00]} 26. Qd8+ {[%emt 0:
00:00]} Kg7 {[%emt 0:00:00]} 27. hxg6 {[%emt 0:00:00]} fxg6 {[%emt 0:00:00]}
28. Rxd6 {[%emt 0:00:00]} Qe3+ {[%emt 0:00:00]} 29. Kb1 {[%emt 0:00:00]} Rf5 {
[%emt 0:00:00]} 30. Qd7+ {[%emt 0:00:00]} Rf7 {[%emt 0:00:00]} 31. Qg4 {
[%emt 0:00:00]} Qe1+ {[%emt 0:00:00]} 32. Rd1 {[%emt 0:00:00]} Qe3 {[%emt 0:00:
00]} 33. Rg1 {[%emt 0:00:00]} Qb6 {[%emt 0:00:00]} 34. Rh1 {[%emt 0:00:00]} Qc6
{[%emt 0:00:00]} 35. Qh4 {[%emt 0:00:00]} Rf5 {[%emt 0:00:00]} 36. Ne4 {
[%emt 0:00:00]} Rh5 {[%emt 0:00:00]} 37. Qe7+ {[%emt 0:00:00]} Kg8 {[%emt 0:00:
00]} 38. Rxh5 {[%emt 0:00:00]} gxh5 {[%emt 0:00:00]} 39. Nf6+ {[%emt 0:00:00]}
1-0